Workbook

Sheet CRONOGRAMA
A4: obra | B4: COMPLEXO (REFORMA DA PRAÇA TENISSON FONTES - PRAÇA DE ALIMENTAÇÃO E CONSTRUÇÃO DE TERMINAL RODOVIÁRIO) - ETAPA 1 | R4: DATA BASE: | S4: JUNHO
A5: local | B5: município de Itabaianinha, no estado de Sergipe | R5: PREÇO GLOBAL: | S5: =$F$13 -> 1099532.59
A6: DOCUMENTO: CRONOGRAMA | N6: BDI: | O6: 0.2139 | P6: DOCUMENTO: CRONOGRAMA | R6: BDI: | S6: 0.2139
A8: ITEM | B8: DESCRIÇÃO | C8: UNIDADE | F8: PREÇO TOTAL | H8: 1.º MÊS | J8: 2.º MÊS | L8: 3.º MÊS | N8: 4.º MÊS | P8: 5.º MÊS | R8: TOTAL
H9: PERCENTUAL | I9: PREÇO | J9: PERCENTUAL | K9: PREÇO | L9: PERCENTUAL | M9: PREÇO | N9: PERCENTUAL | O9: PREÇO | P9: PERCENTUAL | Q9: PREÇO
A10: 1 | B10: ADMINISTRAÇÃO LOCAL E SERVIÇOS PRELIMINARES | C10: m2 | D10: 101036.4 | E10: =D10*12.3% -> 12427.4772 | F10: =F13*G10 -> 88622.32675 | G10: 0.0806 | H10: 0.5163 | I10: =H10*$F10 -> 45755.7073 | J10: 0.1209 | K10: =J10*$F10 -> 10714.4393 | L10: 0.1209 | M10: =L10*$F10 -> 10714.4393 | N10: 0.1209 | O10: =N10*$F10 -> 10714.4393 | P10: 0.121 | Q10: =P10*$F10 -> 10723.30154 | R10: =S10/F10 -> 1 | S10: =I10+K10+M10+O10+Q10 -> 88622.32675
A11: 2 | B11: TERMINAL RODOVIÁRIO | C11: m2 | D11: 426851.99 | E11: =D11*12.3% -> 52502.79477 | F11: =F13*G11 -> 374280.8936 | G11: 0.3404 | H11: 0.231 | I11: =H11*$F11 -> 86458.88643 | J11: 0.2323 | K11: =J11*$F11 -> 86945.45159 | L11: 0.2461 | M11: =L11*$F11 -> 92110.52792 | N11: 0.2249 | O11: =N11*$F11 -> 84175.77298 | P11: 0.0657 | Q11: =P11*$F11 -> 24590.25471 | R11: =S11/F11 -> 1 | S11: =I11+K11+M11+O11+Q11 -> 374280.8936
A12: 3 | B12: REFORMA DA PRAÇA TENISSON FONTES - ETAPA 1 - PRAÇA DE ALIMENTAÇÃO | C12: m2 | D12: 726140.04 | E12: =D12*12.3% -> 89315.22492 | F12: =F13*G12 -> 636629.3696 | G12: 0.579 | H12: 0.2278 | I12: =H12*$F12 -> 145024.1704 | J12: 0.1982 | K12: =J12*$F12 -> 126179.9411 | L12: 0.2008 | M12: =L12*$F12 -> 127835.1774 | N12: 0.208 | O12: =N12*$F12 -> 132418.9089 | P12: 0.1652 | Q12: =P12*$F12 -> 105171.1719 | R12: =S12/F12 -> 1 | S12: =I12+K12+M12+O12+Q12 -> 636629.3696
F13: 1099532.59 | H13: =I13/($F$13) -> 0.25214238 | I13: =SUM(I9:I12) -> 277238.7641 | J13: =K13/($F$13) -> 0.20357726 | K13: =SUM(K9:K12) -> 223839.832 | L13: =M13/($F$13) -> 0.20978018 | M13: =SUM(M9:M12) -> 230660.1446 | N13: =O13/($F$13) -> 0.2067325 | O13: =SUM(O9:O12) -> 227309.1212 | P13: =Q13/($F$13) -> 0.12776768 | Q13: =SUM(Q9:Q12) -> 140484.7281 | S13: =SUM(S9:S12) -> 1099532.59
